bitfinex-derivatives/quotes_BTCF0:USTF0_20250429
["timestamp","ask_amount","ask_price","bid_price","bid_amount"]
[1745927197904,0.1098,95114.0,95113.0,2.4457786]
[1745927198097,0.066,95114.0,95113.0,2.4457786]
[1745927198902,0.066,95114.0,95113.0,2.4447786]
[1745927199100,0.066,95114.0,95113.0,2.3406426]
[1745927199404,0.066,95114.0,95113.0,2.3416426]
[1745927199795,0.1102,95114.0,95113.0,2.3416426]
[1745927201598,0.1551,95114.0,95113.0,2.3416426]
[1745927202105,0.1551,95114.0,95113.0,2.7024426]
[1745927202707,0.0442,95114.0,95113.0,2.7024426]
[1745927202913,0.0889,95132.0,95131.0,0.2101628]
[1745927203204,0.2089,95132.0,95131.0,0.2101628]
[1745927204705,0.2109,95132.0,95131.0,0.2101628]
[1745927204896,0.2119,95132.0,95131.0,0.2101628]
[1745927205902,0.2119,95132.0,95131.0,0.22049246]
[1745927206108,0.2545,95132.0,95131.0,0.22049246]
[1745927216213,0.2545,95132.0,95131.0,0.01032966]
[1745927216515,0.2545,95132.0,95131.0,0.2101628]
[1745927217815,0.2545,95132.0,95131.0,0.22052795]
[1745927222209,0.43186652,95132.0,95131.0,0.22052795]
[1745927224420,0.43186652,95132.0,95131.0,0.26172795]
[1745927225422,0.43186652,95132.0,95126.0,0.0525431]
[1745927225613,0.43186652,95132.0,95131.0,0.2101628]
[1745927226308,0.2545,95132.0,95131.0,0.2101628]
[1745927226511,0.0525407,95131.0,95119.0,0.0525472]
[1745927226716,0.2101824,95123.0,95122.0,0.210182]
[1745927227216,0.4536824,95123.0,95122.0,0.210182]
[1745927228706,0.4546824,95123.0,95122.0,0.210182]
[1745927229111,0.2445,95123.0,95122.0,0.210182]
[1745927231013,0.4546805,95123.0,95122.0,0.210182]
[1745927231217,0.2101935,95121.0,95120.0,0.2101864]
[1745927231417,0.2627407,95121.0,95120.0,0.2101864]
[1745927232213,0.3827407,95121.0,95120.0,0.2101864]
[1745927233912,0.12,95121.0,95120.0,0.2101864]
[1745927234218,0.3311849,95121.0,95120.0,0.2101864]
[1745927235018,0.4122849,95121.0,95120.0,0.2101864]
[1745927250822,0.2101871,95120.0,95119.0,0.0436]
[1745927251022,0.2101871,95120.0,95119.0,0.2537893]
[1745927251231,0.4010871,95120.0,95119.0,0.2537893]
[1745927253834,0.4030871,95120.0,95119.0,0.2537893]
[1745927254440,0.4030871,95120.0,95116.0,0.0525487]
[1745927254441,0.2101937,95117.0,95116.0,0.0525487]
[1745927254625,0.2101937,95117.0,95116.0,0.2627424]
[1745927255327,0.3301937,95117.0,95116.0,0.2627424]
[1745927255528,0.4025937,95117.0,95116.0,0.2627424]
[1745927255933,0.4035937,95117.0,95116.0,0.2627424]
[1745927256140,0.4035937,95117.0,95116.0,0.2101937]
[1745927256934,0.4055937,95117.0,95116.0,0.2101937]
[1745927261039,0.4055937,95117.0,95116.0,0.2449937]
[1745927262238,0.4028937,95117.0,95116.0,0.2449937]
[1745927262939,0.4028937,95117.0,95116.0,0.0348]
[1745927263130,0.4028937,95117.0,95116.0,0.2449959]
[1745927268245,0.2828937,95117.0,95116.0,0.2449959]
[1745927269541,0.39010899,95117.0,95116.0,0.2449959]
[1745927269948,0.35480899,95117.0,95116.0,0.2449959]
[1745927270145,0.14731529,95117.0,95116.0,0.2449959]
[1745927270336,0.11021529,95117.0,95116.0,0.9757959]
[1745927270840,0.12,95124.0,95123.0,0.2101805]
[1745927271033,0.12,95124.0,95123.0,0.3501805]
[1745927271240,0.13393172,95128.0,95127.0,0.2101716]
[1745927272245,0.13393172,95128.0,95127.0,0.2842716]
[1745927272638,0.13393172,95128.0,95127.0,0.2872716]
[1745927274250,0.13393172,95128.0,95127.0,0.2912716]
[1745927274950,0.5709588,95133.0,95132.0,0.2101606]
[1745927275145,0.2101588,95133.0,95132.0,0.2101606]
[1745927275742,0.2101588,95133.0,95132.0,0.29234877]
[1745927275944,0.245254,95135.0,95134.0,0.2101561]
[1745927276141,0.365254,95135.0,95134.0,0.2101561]
[1745927276652,0.1551,95135.0,95134.0,0.2101561]
[1745927277252,0.1551,95135.0,95134.0,0.2121561]
[1745927277742,0.1551,95135.0,95134.0,0.2131561]
[1745927277942,0.1551,95135.0,95134.0,0.2111561]
[1745927278147,0.1551,95135.0,95134.0,0.2131561]
[1745927278852,0.12,95135.0,95134.0,0.2131561]
[1745927279254,0.001,95136.0,95135.0,0.2101539]
[1745927279555,0.2626679,95144.0,95143.0,0.2101341]
[1745927280049,0.4199679,95144.0,95143.0,0.2101341]
[1745927281143,0.4209679,95144.0,95143.0,0.2101341]
[1745927281953,0.121,95144.0,95143.0,0.2101341]
[1745927282152,0.13393172,95146.0,95145.0,0.2101319]
[1745927283850,0.13493172,95146.0,95145.0,0.2101319]
[1745927284552,0.08119855,95146.0,95145.0,0.2101319]
[1745927285150,0.08119855,95146.0,95145.0,0.2401319]
[1745927285339,0.08119855,95146.0,95145.0,0.2101319]
[1745927287855,0.08119855,95146.0,95145.0,0.2740919]
[1745927288255,0.001,95146.0,95145.0,0.2740919]
[1745927288752,0.0357,95146.0,95145.0,0.2740919]
[1745927295263,0.0015,95150.0,95149.0,0.210123]
[1745927295663,0.0384,95150.0,95149.0,0.210123]
[1745927295964,0.11844281,95150.0,95149.0,0.210123]
[1745927296559,0.11944281,95150.0,95149.0,0.210123]
[1745927297168,0.12044281,95150.0,95149.0,0.210123]
[1745927297665,0.08354281,95150.0,95149.0,0.330123]
[1745927297867,0.08354281,95150.0,95149.0,0.210123]
[1745927298257,0.12004281,95150.0,95149.0,1.710123]
[1745927299365,0.04,95150.0,95149.0,1.710123]
[1745927299555,0.13493172,95166.0,95165.0,0.2100877]
[1745927299755,0.34501722,95166.0,95165.0,0.2100877]
[1745927300161,0.46501722,95166.0,95165.0,0.2100877]
[1745927300763,0.47001722,95166.0,95165.0,0.2100877]
[1745927301870,0.47401722,95166.0,95165.0,0.2100877]
[1745927302959,0.54681722,95166.0,95165.0,0.2100877]
[1745927306668,0.4128855,95166.0,95165.0,0.2100877]
[1745927314683,0.4128855,95166.0,95165.0,0.2476877]
[1745927314974,0.2028,95166.0,95165.0,0.6084877]
[1745927315173,0.1602759,95177.0,95170.0,0.052519]
[1745927315374,0.1602759,95177.0,95176.0,0.5708634]
[1745927316980,0.06662148,95184.0,95183.0,0.284648]
[1745927317167,0.001,95196.0,95184.0,0.2100458]
[1745927317476,0.001,95196.0,95183.0,0.2146]
[1745927317477,0.0347,95195.0,95194.0,0.2100237]
[1745927318079,0.071,95195.0,95194.0,0.2100237]
[1745927318280,0.191,95195.0,95194.0,0.2100237]
[1745927318881,0.195,95195.0,95194.0,0.2100237]
[1745927319487,0.198,95195.0,95194.0,0.2100237]
[1745927322790,0.198,95195.0,95194.0,0.21801157]
[1745927323285,0.198,95195.0,95183.0,0.0525118]
[1745927323480,0.0525081,95190.0,95187.0,0.210037]
[1745927323784,0.2100369,95188.0,95177.0,0.0372]
[1745927323982,0.2625599,95186.0,95185.0,0.2100391]
[1745927324781,0.3334599,95186.0,95185.0,0.2100391]
[1745927325089,0.2100612,95177.0,95176.0,0.5891748]
[1745927325290,0.2100612,95177.0,95176.0,0.2100634]
[1745927325884,0.0525171,95174.0,95170.0,0.0525186]
[1745927326084,0.2100744,95171.0,95170.0,0.3151116]
[1745927326483,0.2801744,95171.0,95170.0,0.3151116]
[1745927327194,0.4001744,95171.0,95170.0,0.3151116]
[1745927330496,0.4001744,95171.0,95170.0,0.3512116]
[1745927332382,0.4001744,95171.0,95170.0,0.335293]
[1745927339201,0.4001744,95171.0,95170.0,0.1684624]
[1745927339402,0.4001744,95171.0,95170.0,0.220981]
[1745927340597,0.4001744,95171.0,95170.0,0.1684624]
[1745927341603,0.4001744,95171.0,95170.0,0.1318624]
[1745927341799,0.2100811,95168.0,95167.0,0.00157617]
[1745927342196,0.3300811,95168.0,95167.0,0.00157617]
[1745927342899,0.3300811,95168.0,95167.0,0.21265947]
[1745927343206,0.3300811,95168.0,95167.0,0.00357617]
[1745927343398,0.3300811,95168.0,95167.0,0.21265947]
[1745927343703,0.3300811,95168.0,95167.0,0.21365947]
[1745927344603,0.3300811,95168.0,95167.0,0.28675947]
[1745927350895,0.3300811,95168.0,95167.0,0.04097617]
[1745927351100,0.3300811,95168.0,95167.0,0.00357617]
[1745927351307,0.4000811,95168.0,95167.0,0.00357617]
[1745927352504,0.4000811,95168.0,95167.0,0.00257617]
[1745927353400,0.4000811,95168.0,95167.0,0.00157617]
[1745927354208,0.905876,95168.0,95143.0,0.2117118]
[1745927354507,0.2101517,95136.0,95132.0,0.00926683]
[1745927354698,0.2101517,95136.0,95133.0,0.2101569]
[1745927354898,0.2101517,95136.0,95132.0,0.21173645]
[1745927355106,0.38596371,95136.0,95135.0,1e-08]
[1745927355306,0.86676371,95136.0,95135.0,1e-08]
[1745927356604,0.86676371,95136.0,95135.0,0.00100001]
[1745927356809,0.86676371,95136.0,95135.0,0.21115391]
[1745927356995,0.7616517,95136.0,95135.0,0.21115391]
[1745927357402,0.7270517,95136.0,95135.0,0.21115391]
[1745927358008,0.7270517,95136.0,95135.0,0.21015391]
[1745927358702,0.7641517,95136.0,95135.0,0.21015391]
[1745927359405,0.4033517,95136.0,95135.0,0.21115391]
[1745927359605,0.4033517,95136.0,95135.0,0.24615391]
[1745927359809,0.7641517,95136.0,95135.0,0.24615391]
[1745927360411,0.7641517,95136.0,95135.0,0.24715391]
[1745927361711,0.7641517,95136.0,95135.0,0.24615391]
[1745927361911,0.7641517,95136.0,95135.0,0.24715391]
[1745927362312,0.7641517,95136.0,95135.0,0.24615391]
[1745927362502,0.7641517,95136.0,95135.0,0.24715391]
[1745927367314,0.5169,95136.0,95135.0,0.24715391]
[1745927367517,0.3301517,95136.0,95135.0,0.24715391]
[1745927368215,0.2101517,95136.0,95135.0,0.24715391]
[1745927373411,0.0903332,95145.0,95141.0,0.052535]
[1745927373623,0.2101385,95143.0,95142.0,0.3361703]
[1745927373931,0.0353,95144.0,95143.0,0.2101363]
[1745927374222,0.2454341,95144.0,95143.0,0.2836363]
[1745927374522,0.001,95145.0,95144.0,0.2101341]
[1745927374814,0.2111319,95145.0,95144.0,0.2831341]
[1745927375117,0.2101319,95145.0,95144.0,0.2831341]
[1745927375517,0.3608,95146.0,95145.0,0.2101319]
[1745927375719,0.5709296,95146.0,95145.0,0.2831319]
[1745927376120,0.3608,95146.0,95145.0,0.2831319]
[1745927377717,0.3608,95146.0,95145.0,0.2871319]
[1745927378424,0.3608,95146.0,95145.0,0.2891319]
[1745927383737,0.2454168,95152.0,95145.0,0.079]
[1745927383933,0.4133231,95163.0,95160.0,0.2100965]
[1745927384223,0.2463943,95162.0,95161.0,0.2463965]
[1745927385623,0.2839943,95162.0,95161.0,0.2463965]
[1745927385820,0.0739,95162.0,95161.0,0.2463965]
[1745927386125,0.0739,95162.0,95161.0,0.2473965]
[1745927387024,0.0376,95162.0,95161.0,0.2473965]
[1745927387629,0.0376,95162.0,95161.0,0.11633256]
[1745927387825,0.0729,95162.0,95161.0,0.11633256]
[1745927388127,0.0729,95162.0,95161.0,0.10575295]
[1745927392129,0.4029943,95162.0,95161.0,0.2130965]
[1745927392329,0.7637943,95162.0,95161.0,0.003]
[1745927392538,0.210112,95154.0,95153.0,0.22069904]
[1745927393134,0.330112,95154.0,95153.0,0.2101142]
[1745927393634,0.402312,95154.0,95153.0,0.2101142]
[1745927394131,0.282312,95154.0,95153.0,0.2121142]
[1745927394535,0.282312,95154.0,95153.0,0.2151142]
[1745927394837,0.282312,95154.0,95153.0,0.2141142]
[1745927395133,0.282312,95154.0,95153.0,0.2111142]
[1745927395439,0.282312,95154.0,95153.0,0.2131142]
[1745927396141,0.402312,95154.0,95153.0,0.2131142]
[1745927396838,0.402312,95154.0,95153.0,0.2121142]
[1745927397340,0.282312,95154.0,95153.0,0.2121142]
[1745927397542,0.282312,95154.0,95153.0,0.2111142]
[1745927397839,0.282312,95154.0,95153.0,0.2121142]
[1745927400646,0.0722,95154.0,95153.0,0.2121142]
[1745927400849,0.282312,95154.0,95153.0,0.2121142]
[1745927401141,0.0722,95154.0,95153.0,0.2121142]
[1745927401934,0.0638,95178.0,95167.0,0.2625991]
[1745927402135,0.2100873,95168.0,95167.0,0.3151193]
[1745927402643,0.0366,95169.0,95168.0,0.2100811]
[1745927402837,0.2466789,95169.0,95168.0,0.2100811]
[1745927403244,0.3204789,95169.0,95168.0,0.2100811]
[1745927403838,0.1104,95169.0,95168.0,0.2100811]
[1745927404030,0.1124,95169.0,95168.0,0.2100811]
[1745927404243,0.1124,95169.0,95168.0,0.2464811]
[1745927404842,0.1144,95169.0,95168.0,0.2464811]
[1745927405435,0.1124,95169.0,95168.0,0.25450475]
[1745927405745,0.1104,95169.0,95168.0,0.25450475]
[1745927412448,0.3204789,95169.0,95168.0,0.21810475]
[1745927413856,0.3204789,95169.0,95168.0,0.00802365]
[1745927414056,0.0525215,95166.0,95162.0,0.0364]
[1745927414261,0.0738,95165.0,95151.0,0.2101159]
[1745927414551,0.210112,95157.0,95156.0,0.2101064]
[1745927415056,0.321312,95157.0,95156.0,0.2101064]
[1745927415353,0.441312,95157.0,95156.0,0.2101064]
[1745927415856,0.441312,95157.0,95156.0,0.2131064]
[1745927416755,0.441312,95157.0,95156.0,0.2121064]
[1745927417357,0.441312,95157.0,95156.0,0.2141064]
[1745927421753,0.441312,95157.0,95156.0,0.004]
[1745927421953,0.441312,95157.0,95156.0,0.2141076]
[1745927426562,0.2312,95157.0,95156.0,0.2141076]
[1745927426763,0.4413054,95157.0,95156.0,0.2141076]
[1745927427863,0.2312,95157.0,95156.0,0.2141076]
[1745927428462,0.4413054,95157.0,95156.0,0.2141076]
[1745927432761,0.4413054,95157.0,95156.0,0.004]
[1745927433269,0.4413054,95157.0,95156.0,0.2141076]
[1745927433667,0.4413054,95157.0,95156.0,0.004]
[1745927433867,0.4413054,95157.0,95156.0,0.2141076]
[1745927436970,0.4413054,95157.0,95156.0,0.004]
[1745927437170,0.4413054,95157.0,95156.0,0.2141076]
[1745927441171,0.3213054,95157.0,95156.0,0.2141076]
[1745927442369,0.3213054,95157.0,95156.0,0.2448076]
[1745927460985,0.3213054,95157.0,95156.0,0.2428076]
[1745927461185,0.3213054,95157.0,95156.0,0.2448076]
[1745927461586,0.3213054,95157.0,95156.0,0.2428076]
[1745927461884,0.3213054,95157.0,95156.0,0.2448076]
[1745927465772,0.3213054,95157.0,95156.0,0.0347]
[1745927466188,0.3213054,95157.0,95156.0,0.2448076]
[1745927467385,0.3213054,95157.0,95156.0,0.2438076]
[1745927468989,0.3213054,95157.0,95156.0,0.2428076]
[1745927481393,0.343671,95158.0,95157.0,0.2101054]
[1745927481589,0.1335679,95158.0,95157.0,0.3039054]
[1745927481790,0.343671,95158.0,95157.0,0.3039054]
[1745927481997,0.407771,95158.0,95157.0,0.3039054]
[1745927482384,0.407771,95158.0,95157.0,0.3049054]
[1745927483998,0.407771,95158.0,95157.0,0.3059054]
[1745927483999,0.2742031,95158.0,95157.0,0.3059054]
[1745927487398,0.06497424,95167.0,95166.0,0.2100855]
[1745927487598,0.2100835,95167.0,95166.0,0.2100855]
[1745927488501,0.2400835,95167.0,95166.0,0.2100855]
[1745927488703,0.2410835,95167.0,95166.0,0.2100855]
[1745927490407,0.002,95167.0,95166.0,0.2100855]
[1745927490705,0.002,95167.0,95166.0,0.2203611]
[1745927490905,0.2120833,95167.0,95166.0,0.2203611]
[1745927491906,0.002,95167.0,95166.0,0.2203611]
[1745927492307,0.2120833,95167.0,95166.0,0.2203611]
[1745927492521,0.16016711,95180.0,95173.0,0.0525172]
[1745927492702,0.16016711,95180.0,95179.0,0.5708568]
[1745927493199,0.07303278,95180.0,95179.0,0.6908568]
[1745927493401,0.07303278,95180.0,95179.0,0.7541568]
[1745927494013,0.07303278,95186.0,95184.0,0.2100458]
[1745927494307,0.0347,95185.0,95184.0,0.2100458]
[1745927494605,0.0347,95185.0,95183.0,0.0328]
[1745927494804,0.2416458,95184.0,95183.0,0.242848]
[1745927495799,0.2748458,95184.0,95183.0,0.242848]
[1745927497109,0.2778458,95184.0,95183.0,0.242848]
[1745927497610,0.2808458,95184.0,95183.0,0.250544]
[1745927499407,0.2808458,95184.0,95173.0,0.2100679]
[1745927499408,0.2625912,95174.0,95173.0,0.2100679]
[1745927499608,0.2100739,95174.0,95173.0,0.2100679]
[1745927500004,0.0308,95175.0,95174.0,0.2100678]
[1745927500202,0.2408656,95175.0,95174.0,0.2100678]
[1745927501200,0.0318,95175.0,95174.0,0.2411678]
[1745927501504,0.0328,95175.0,95174.0,0.2411678]
[1745927501904,0.2747656,95175.0,95174.0,0.2411678]
[1745927510316,0.2747656,95175.0,95174.0,0.2100678]
[1745927510624,0.2100678,95174.0,95173.0,0.0078233]
[1745927510808,0.2100678,95174.0,95100.0,0.06497424]
[1745927510809,0.0525185,95172.0,95140.0,0.3608]
[1745927511013,0.63589024,95153.0,95152.0,0.2101164]
[1745927511215,0.570916,95153.0,95152.0,0.2101164]
[1745927512015,0.600916,95153.0,95152.0,0.2101164]
[1745927512418,0.600916,95153.0,95152.0,0.2141164]
[1745927513017,0.3908,95153.0,95152.0,0.2141164]
[1745927513218,0.03,95153.0,95152.0,0.2141164]
[1745927513827,0.03,95153.0,95152.0,0.2533767]
[1745927514015,0.03,95153.0,95152.0,0.2877767]
[1745927514325,0.2101042,95158.0,95157.0,0.2101054]
[1745927514525,0.2401009,95159.0,95158.0,0.2101031]
[1745927517525,0.2401009,95159.0,95158.0,0.2121031]
[1745927517825,0.2401009,95159.0,95158.0,0.2141031]
[1745927520916,0.2375009,95159.0,95158.0,0.2141031]
[1745927522619,0.0274,95159.0,95158.0,0.5729031]
[1745927522924,0.0525184,95172.0,95158.0,0.3937]
[1745927523226,0.0327,95166.0,95165.0,0.2100877]
[1745927523922,0.2427855,95166.0,95165.0,0.2716877]
[1745927524115,0.2731855,95166.0,95165.0,0.2716877]
[1745927524819,0.2731855,95166.0,95165.0,0.2726877]
[1745927525418,0.6339855,95166.0,95165.0,0.2432877]
[1745927526518,0.2731855,95166.0,95165.0,0.2432877]
[1745927533230,0.0631,95166.0,95165.0,0.2432877]
[1745927533528,0.0525107,95186.0,95173.0,0.21007]
[1745927533832,0.5708678,95174.0,95173.0,0.21007]
[1745927534432,0.5708678,95174.0,95173.0,0.24297]
[1745927534628,0.5718678,95174.0,95173.0,0.24297]
[1745927534928,0.2100463,95184.0,95183.0,0.2100458]
[1745927535433,0.2433463,95184.0,95183.0,0.2100458]
[1745927536133,0.2463463,95184.0,95183.0,0.2100458]
[1745927536335,0.2783463,95184.0,95183.0,0.2401458]
[1745927536530,0.1,95200.0,95183.0,0.13516]
[1745927536727,0.19237193,95195.0,95194.0,0.5708237]
[1745927537027,0.06702201,95195.0,95194.0,0.6908237]
[1745927537230,0.06702201,95195.0,95194.0,0.9158717]
[1745927537631,0.06702201,95195.0,95194.0,1.0107717]
[1745927537838,0.11896634,95220.0,95216.0,0.2099752]
[1745927538133,0.18759695,95217.0,95214.0,0.2099781]
[1745927538438,0.0621,95216.0,95215.0,0.0303]
[1745927538729,0.06647424,95220.0,95216.0,0.0524938]
[1745927538730,0.0015,95220.0,95216.0,0.0524938]
[1745927538929,0.2418685,95219.0,95218.0,0.2099708]
[1745927539122,0.2730685,95219.0,95218.0,0.2099708]
[1745927540132,0.0631,95219.0,95218.0,0.2099708]
[1745927540340,0.2133,95219.0,95218.0,0.2099708]
[1745927540526,0.2133,95219.0,95218.0,0.2407708]
[1745927541631,0.4232685,95219.0,95218.0,0.2407708]
[1745927541940,0.127,95219.0,95218.0,0.2407708]
[1745927542236,0.0687,95219.0,95218.0,0.2407708]
[1745927542827,0.2786685,95219.0,95218.0,0.2099708]
[1745927543534,0.2786685,95219.0,95215.0,0.00793981]
[1745927543535,0.2099752,95217.0,95216.0,0.2099737]
[1745927543733,0.0524937,95217.0,95214.0,0.2624728]
[1745927543932,0.2099774,95215.0,95214.0,0.2624728]
[1745927544323,0.2744774,95215.0,95214.0,0.2099783]
[1745927544531,0.2099906,95210.0,95209.0,0.2099858]
[1745927544836,0.2099972,95206.0,95205.0,0.06356]
[1745927545054,0.262518,95200.0,95199.0,0.2100019]
[1745927545241,0.262518,95200.0,95199.0,0.21791508]
[1745927545931,0.262518,95200.0,95199.0,0.27041678]
[1745927546835,0.2100237,95195.0,95194.0,0.2100174]
[1745927547133,0.1050084,95197.0,95180.0,0.0525136]
[1745927547134,0.052513,95183.0,95180.0,0.0525136]
[1745927547325,0.2100546,95182.0,95181.0,0.2100502]
[1745927547529,0.2715546,95182.0,95181.0,0.2100502]
[1745927548036,0.2715546,95182.0,95181.0,0.21790036]
[1745927548825,0.2715546,95182.0,95181.0,0.22190036]
[1745927549724,0.2715546,95182.0,95181.0,0.01185016]
[1745927549934,0.2715546,95182.0,95181.0,0.22190036]
[1745927550124,0.2715546,95182.0,95181.0,0.22590036]
[1745927550530,0.2715546,95182.0,95181.0,0.008]
[1745927550833,0.2715546,95182.0,95181.0,0.004]
[1745927551035,0.2715546,95182.0,95181.0,0.007]
[1745927551224,0.3915546,95182.0,95181.0,0.007]
[1745927551929,0.3915546,95182.0,95181.0,0.006]
[1745927552526,0.3915546,95182.0,95181.0,0.005]
[1745927553626,0.3915546,95182.0,95181.0,0.002]
[1745927553934,0.3915546,95182.0,95181.0,0.004]
[1745927554125,0.3915546,95182.0,95181.0,0.2140524]
[1745927554629,0.3915546,95182.0,95181.0,0.2130524]
[1745927555140,0.3915546,95182.0,95181.0,0.2110524]
[1745927555439,0.3915546,95182.0,95181.0,0.2130524]
[1745927560644,0.7523546,95182.0,95181.0,0.2130524]
[1745927562042,0.7849546,95182.0,95181.0,0.2130524]
[1745927569250,0.7849502,95182.0,95181.0,0.2130524]
[1745927569457,0.5423,95182.0,95181.0,0.2130524]
[1745927569638,0.1815,95182.0,95181.0,0.2130524]
[1745927569836,0.1815,95182.0,95181.0,0.2454524]
[1745927570243,0.0615,95182.0,95181.0,0.2454524]
[1745927571942,0.3608,95191.0,95181.0,0.0354]
[1745927572144,0.3608,95191.0,95190.0,0.2100325]
[1745927572945,0.15994023,95210.0,95201.0,0.2100082]
[1745927573144,0.209985,95212.0,95201.0,0.3300082]
[1745927573343,0.0638,95209.0,95201.0,0.3300082]
[1745927573942,0.0638,95209.0,95201.0,0.3945082]
[1745927574958,0.2737906,95209.0,95201.0,0.3945082]
[1745927576650,0.0638,95209.0,95201.0,0.3945082]
[1745927577257,0.2737912,95209.0,95208.0,0.2099928]
[1745927578460,0.2757912,95209.0,95208.0,0.2099928]
[1745927580659,0.002,95209.0,95208.0,0.2099928]
[1745927580860,0.002,95209.0,95208.0,0.2429928]
[1745927581659,0.0641,95209.0,95208.0,0.2429928]
[1745927582361,0.002,95209.0,95208.0,0.2429928]
[1745927583866,0.0337,95209.0,95208.0,0.2429928]
[1745927584058,0.0656,95209.0,95208.0,0.2429928]
[1745927584259,0.2099928,95208.0,95207.0,0.0313]
[1745927584460,0.2100152,95200.0,95199.0,0.210007]
[1745927604865,0.3063069,95202.0,95201.0,0.2100082]
[1745927607578,0.3073069,95202.0,95201.0,0.2100082]
[1745927612879,0.0973,95202.0,95201.0,0.2100082]
[1745927615686,0.3608,95219.0,95218.0,0.2099708]
[1745927615988,0.5707685,95219.0,95218.0,0.2099708]
[1745927616880,0.2099708,95218.0,95217.0,0.0325]
[1745927617083,0.3648,95219.0,95194.0,0.37109396]
[1745927617286,0.2099972,95206.0,95205.0,0.0832994]
[1745927617586,0.5707928,95208.0,95207.0,0.209995]
[1745927617784,0.3608,95208.0,95207.0,0.209995]
[1745927618290,0.3608,95208.0,95207.0,0.240795]
[1745927619078,0.5707928,95208.0,95207.0,0.240795]
[1745927619279,0.5707928,95208.0,95207.0,0.0308]
[1745927619483,0.5707928,95208.0,95195.0,0.2100206]
[1745927619484,0.2100215,95196.0,95195.0,0.2100206]
[1745927620080,0.0316,95197.0,95196.0,0.2100193]
[1745927620390,0.2100073,95202.0,95201.0,0.2625053]
[1745927620590,0.2100073,95202.0,95201.0,0.2933053]
[1745927620783,0.2100073,95202.0,95201.0,0.2735038]
[1745927621098,0.2100073,95202.0,95201.0,0.2427038]
[1745927621294,0.2741073,95202.0,95201.0,0.2427038]
[1745927622089,0.2741073,95202.0,95201.0,0.2437038]
[1745927622492,0.2741073,95202.0,95201.0,0.2447038]
[1745927632100,0.2741073,95202.0,95201.0,0.0347]
[1745927632293,0.2625556,95188.0,95173.0,0.0525172]
[1745927632496,0.2100435,95186.0,95185.0,0.2100413]
[1745927632888,0.2100435,95186.0,95185.0,0.2408413]
[1745927633398,0.0644,95187.0,95186.0,0.2100413]
[1745927633591,0.2744391,95187.0,95186.0,0.2406413]
[1745927635113,0.2744391,95187.0,95186.0,0.002]
[1745927635114,0.3944391,95187.0,95186.0,0.002]
[1745927635287,0.3944391,95187.0,95186.0,0.004]
[1745927637101,0.3944391,95187.0,95186.0,0.2120413]
[1745927637789,0.3944391,95187.0,95186.0,0.2100413]
[1745927638192,0.2744391,95187.0,95186.0,0.2421413]
[1745927639198,0.3944391,95187.0,95186.0,0.2421413]
[1745927640094,0.2744391,95187.0,95186.0,0.2421413]
[1745927641703,0.0644,95187.0,95186.0,0.2421413]
[1745927641893,0.2433391,95187.0,95186.0,0.2421413]
[1745927644305,0.3608,95191.0,95188.0,0.0525087]
[1745927644492,0.2100325,95193.0,95192.0,0.3150325]
[1745927645097,0.2100325,95193.0,95192.0,0.2625258]
[1745927645802,0.2120325,95193.0,95192.0,0.2625258]
[1745927648008,0.2100325,95193.0,95192.0,0.2625258]
[1745927657117,0.2410237,95194.0,95193.0,0.2100259]
[1745927657316,0.2410237,95194.0,95193.0,0.2724259]
[1745927657518,0.031,95194.0,95193.0,0.2724259]
[1745927657720,0.2410237,95194.0,95193.0,0.2724259]
[1745927659014,0.031,95194.0,95193.0,0.2724259]
[1745927659720,0.2410237,95194.0,95193.0,0.2724259]
[1745927662410,0.2410237,95194.0,95193.0,1.7724259]
[1745927666420,0.2410237,95194.0,95193.0,1.7415259]
[1745927674530,0.031,95194.0,95193.0,1.7415259]
[1745927674830,0.031,95194.0,95193.0,1.7732259]
[1745927675223,0.2410237,95194.0,95193.0,1.7732259]
[1745927683036,0.2410237,95194.0,95193.0,1.7415259]
[1745927685037,0.2410237,95194.0,95193.0,1.5]
[1745927685236,0.2100369,95188.0,95187.0,0.3150521]
[1745927685435,0.5708369,95188.0,95187.0,0.3150521]
[1745927685738,0.5708369,95188.0,95187.0,1.8150521]
[1745927686337,0.6337369,95188.0,95187.0,1.8160521]
[1745927686844,0.6337369,95188.0,95187.0,1.8170521]
[1745927689641,0.6337369,95188.0,95187.0,0.002]
[1745927690139,0.7537369,95188.0,95187.0,0.002]
[1745927690936,0.7537369,95188.0,95187.0,0.001]
[1745927691239,0.7537369,95188.0,95187.0,0.002]
[1745927691840,0.7537369,95188.0,95187.0,0.001]
[1745927692035,0.7537369,95188.0,95187.0,0.002]
[1745927692435,0.7537369,95188.0,95187.0,0.001]
[1745927692642,0.2100391,95187.0,95186.0,0.2100412]
[1745927693027,0.2733391,95187.0,95186.0,0.2100412]
[1745927693231,0.3933391,95187.0,95186.0,0.2100412]
[1745927694232,0.3933391,95187.0,95186.0,0.2110412]
[1745927694942,0.3933391,95187.0,95186.0,0.2110413]
[1745927696246,0.3933391,95187.0,95186.0,0.2100413]
[1745927696541,0.3933391,95187.0,95186.0,0.2110413]
[1745927696841,0.3933391,95187.0,95186.0,0.001]
[1745927697046,0.2100458,95184.0,95183.0,0.2100466]
[1745927698138,0.2423458,95184.0,95183.0,0.2100466]
[1745927698332,0.2423458,95184.0,95183.0,0.2110466]
[1745927699144,0.2423458,95184.0,95183.0,0.2120466]
[1745927702941,0.2423458,95184.0,95183.0,0.212048]
[1745927704234,0.2423458,95184.0,95183.0,0.242548]
[1745927706341,0.2423458,95184.0,95183.0,0.0325]
[1745927706744,0.2423458,95184.0,95183.0,0.242548]
[1745927710845,0.2423458,95184.0,95183.0,0.09691908]
[1745927714051,0.2423458,95184.0,95183.0,0.12791908]
[1745927724557,0.0323,95184.0,95183.0,0.12791908]
[1745927724864,0.2431423,95186.0,95185.0,0.2100391]
[1745927725059,0.0525075,95192.0,95191.0,0.2100281]
[1745927725266,0.3481545,95192.0,95191.0,0.2100281]
[1745927725661,0.2431378,95192.0,95191.0,0.2750281]
[1745927725857,0.2732221,95195.0,95194.0,0.2100237]
[1745927726858,0.2732221,95195.0,95194.0,0.2754237]
[1745927727665,0.2752221,95195.0,95194.0,0.2754237]
[1745927727866,0.002,95195.0,95194.0,0.2754237]
[1745927728166,0.002,95195.0,95194.0,0.7562237]
[1745927728352,0.004,95195.0,95194.0,0.7562237]
[1745927729569,0.2140215,95195.0,95194.0,0.7562237]
[1745927730367,0.2120215,95195.0,95194.0,0.7582237]
[1745927731363,0.2100215,95195.0,95194.0,0.7582237]
[1745927731666,0.2100215,95195.0,95194.0,0.7602237]
[1745927732870,0.2100215,95195.0,95194.0,0.5502]
[1745927733070,0.2100215,95195.0,95194.0,0.7602237]
[1745927737670,0.2415215,95195.0,95194.0,0.7602237]